[Event "Gibraltar Challengers A 2019"]
[Site "Caleta"]
[Date "2019.01.22"]
[Round "2"]
[White "Lucas Vega, Ivan"]
[Black "Hamer, Martyn"]
[Result "1-0"]
[ECO "C75"]
[WhiteElo "2203"]
[BlackElo "2046"]
[Annotator "NA"]
[PlyCount "139"]
[EventDate "2019.01.18"]
[EventType "swiss"]
[EventCountry "GGB"]
[SourceTitle "playchess.com"]
[Source "ChessBase"]
[SourceQuality "1"]
[TimeControl "6600+10"]

1. e4 {[%emt 0:00:00]} e5 {[%emt 0:00:01]} 2. Nf3 {[%emt 0:00:00]} Nc6 {[%emt 0:00:05]} 3. Bb5 {[%emt 0:00:10]} a6 {[%emt 0:00:06]} 4. Ba4 {[%emt 0:00:10]} d6 {[%emt 0:00:06] LiveBook: 3940 Games} 5. d3 {[%emt 0:01:36]} Bd7 {[%emt 0:00:42]} 6. c3 {[%emt 0:01:00]} g6 {[%emt 0:00:49] C75: Ruy Lopez: Deferred Steinitz: 5 c3 Bd7 6 d4 without ...g6} (6... Nge7 7. Bg5 h6 8. Bh4 g5 9. Bg3 Bg7 10. h4 g4 11. Nh2 h5 12. f3 f5 13. fxg4 hxg4 14. exf5 Nxf5 15. Qxg4 {½-½ (94) Fier,A (2581)-Korobov,A (2605) Beijing 2008}) 7. Be3 {[%emt 0:02:13]} Bg7 {[%emt 0:00:18]} 8. Nbd2 $146 {[%emt 0:01:56]} ({Predecessor:} 8. Qc1 Qe7 9. O-O h6 10. Re1 Nf6 11. Bb3 Nh5 12. d4 g5 13. dxe5 dxe5 14. Bc4 {1-0 (46) Kan,I-Rauzer,V Leningrad (Russia) 1934}) 8... Nf6 {[%emt 0:00:35]} 9. h3 {[%emt 0:01:27]} O-O {[%emt 0:01:00]} 10. g4 {[%emt 0:01:15]} ({White should play} 10. Bb3 $11) 10... b5 {[%emt 0:03:22]} 11. Bc2 {[%emt 0:00:31]} Ne7 {[%emt 0:08:08]} 12. Nf1 {[%emt 0:00:53]} c5 {[%emt 0:03:04]} 13. Ng3 {[%emt 0:00:50]} Qc7 {[%emt 0:03:18]} 14. Qd2 {[%emt 0:04:57]} Rfd8 {[%emt 0:03:08]} 15. Bh6 {[%emt 0:01:09]} c4 {[%emt 0:08:00]} 16. Bxg7 {[%emt 0:08:51]} Kxg7 {[%emt 0:00:06]} 17. d4 {[%emt 0:04:55]} exd4 {[%emt 0:02:26]} 18. Nxd4 {[%emt 0:00:18]} d5 {[%emt 0:07:25]} 19. exd5 {[%emt 0:08:17]} Qe5+ {[%emt 0:06:47]} 20. Qe2 {[%emt 0:03:34]} Qxe2+ {[%emt 0:01:35]} 21. Ngxe2 {[%emt 0:00:11]} Nfxd5 {[%emt 0:03:12]} 22. O-O-O {[%emt 0:00:41]} Rab8 {[%emt 0:01:59]} 23. Rd2 {[%emt 0:04:54]} Kf8 {[%emt 0:04:45]} 24. Be4 {[%emt 0:01:34]} Nc7 {[%emt 0:02:36]} 25. Rhd1 {[%emt 0:01:35]} Ke8 {[%emt 0:02:26]} 26. f4 {[%emt 0:07:28]} Ne6 {[%emt 0:06:16]} 27. Nxe6 {[%emt 0:00:25]} Bxe6 {[%emt 0:02:29]} 28. Nd4 {[%emt 0:00:02]} Bd5 {[%emt 0:06:01]} 29. Bc2 {[%emt 0:00:39]} Ba8 {[%emt 0:04:15]} 30. f5 {[%emt 0:02:07]} Nc6 {[%emt 0:01:54]} 31. fxg6 {[%emt 0:01:35]} hxg6 {[%emt 0:01:36]} 32. h4 {[%emt 0:11:04]} Nxd4 {[%emt 0:01:24]} 33. Rxd4 {[%emt 0:00:37]} Rxd4 {[%emt 0:04:21]} 34. Rxd4 {[%emt 0:00:02]} Rb6 {[%emt 0:01:33]} 35. a4 {[%emt 0:01:49]} Ke7 {[%emt 0:01:18]} 36. a5 {[%emt 0:01:26]} Rf6 {[%emt 0:00:29]} 37. b3 {[%emt 0:03:15]} cxb3 {[%emt 0:01:09]} 38. Bxb3 {[%emt 0:00:02]} Rf2 {[%emt 0:02:03]} 39. Bc2 {[%emt 0:01:17]} Bc6 {[%emt 0:01:52]} 40. g5 {[%emt 0:07:31]} Bd7 {[%emt 0:03:44]} 41. c4 {[%emt 0:01:09]} bxc4 {[%emt 0:00:37]} 42. Rxc4 {[%emt 0:00:02]} Bb5 {[%emt 0:01:24]} 43. Rc7+ {[%emt 0:01:06]} Kd6 {[%emt 0:00:06]} 44. Ra7 {[%emt 0:02:33]} Bc4 {[%emt 0:00:59]} 45. Ra8 {[%emt 0:02:24]} Rh2 {[%emt 0:00:34]} 46. Rh8 {[%emt 0:03:30]} Kc5 {[%emt 0:00:10]} 47. Bd1 {[%emt 0:01:10]} Kb4 {[%emt 0:00:34]} 48. h5 {[%emt 0:01:18]} gxh5 {[%emt 0:00:47]} 49. Rxh5 $17 {[%emt 0:01:02]} Rg2 {[%emt 0:01:14]} 50. Bc2 {[%emt 0:00:45]} Be6 {[%emt 0:01:42]} 51. g6 {[%emt 0:05:20]} Kc3 {[%emt 0:00:51]} 52. Rc5+ {[%emt 0:01:56]} Bc4 {[%emt 0:00:05]} 53. Rxc4+ {[%emt 0:02:42]} Kxc4 {[%emt 0:00:09]} 54. gxf7 {[%emt 0:00:03]} Rf2 {[%emt 0:00:09]} 55. Bg6 {[%emt 0:00:22]} Kb5 {[%emt 0:00:22]} 56. Kd1 {[%emt 0:00:08]} Kxa5 {[%emt 0:00:12]} 57. Ke1 {[%emt 0:00:02]} Rf6 {[%emt 0:00:07]} 58. Kd2 {[%emt 0:00:27]} Kb4 {[%emt 0:00:06]} 59. Kd3 {[%emt 0:00:13]} a5 {[%emt 0:00:48]} 60. Kd4 {[%emt 0:00:26]} a4 {[%emt 0:00:36]} 61. Ke5 {[%emt 0:00:01]} Rf1 {[%emt 0:00:06]} 62. Bf5 {[%emt 0:00:09]} Re1+ {[%emt 0:00:54]} 63. Kf6 {[%emt 0:00:03]} a3 {[%emt 0:00:12]} 64. f8=Q+ {[%emt 0:00:07]} Kb3 {[%emt 0:00:10]} 65. Qb8+ {[%emt 0:00:22]} Ka2 {[%emt 0:00:37]} 66. Qh2+ {[%emt 0:00:24]} Ka1 {[%emt 0:00:32]} 67. Qd2 {[%emt 0:00:12]} Rh1 {[%emt 0:00:27]} 68. Qd4+ {[%emt 0:00:16]} Ka2 {[%emt 0:00:02]} 69. Be6+ {[%emt 0:00:18]} Kb1 {[%emt 0:00:04]} 70. Qe4+ {[%emt 0:00:04]} 1-0

[Event "Gibraltar Challengers A 2019"]
[Site "Caleta"]
[Date "2019.01.22"]
[Round "2"]
[White "Torres, Federico"]
[Black "Erdogan, Hassan"]
[Result "1/2-1/2"]
[ECO "A05"]
[WhiteElo "2196"]
[BlackElo "1833"]
[Annotator "NA"]
[PlyCount "91"]
[EventDate "2019.01.18"]
[EventType "swiss"]
[EventCountry "GGB"]
[SourceTitle "playchess.com"]
[Source "ChessBase"]
[SourceQuality "1"]
[TimeControl "6600+10"]

1. e4 {[%emt 0:01:16]} c5 {[%emt 0:00:00]} 2. Nf3 {[%emt 0:00:06]} g6 {[%emt 0:00:24]} 3. d3 {[%emt 0:00:09]} Bg7 {[%emt 0:00:06]} 4. g3 {[%emt 0:00:08]} Nc6 {[%emt 0:01:07]} 5. Bg2 {[%emt 0:00:06]} d6 {[%emt 0:00:49]} 6. c3 {[%emt 0:00:36]} Nf6 {[%emt 0:02:33]} 7. O-O {[%emt 0:00:09]} O-O {[%emt 0:00:28]} 8. Re1 {[%emt 0:00:23]} e5 {[%emt 0:19:16]} 9. a3 {[%emt 0:00:06]} a5 {[%emt 0:08:51]} 10. a4 {[%emt 0:00:10]} h6 {[%emt 0:08:27]} 11. Na3 {[%emt 0:08:13]} Nh5 {[%emt 0:02:33]} 12. Nc4 {[%emt 0:01:25]} Be6 {[%emt 0:02:57]} 13. Nfd2 {[%emt 0:51:15]} Kh7 {[%emt 0:17:26]} 14. Ne3 {[%emt 0:01:13]} b6 {[%emt 0:11:58]} 15. Ndc4 {[%emt 0:33:57]} Rb8 {[%emt 0:03:53]} 16. Nf5 {[%emt 0:06:59]} Bxf5 {[%emt 0:04:36]} 17. exf5 {[%emt 0:00:04]} Ne7 {[%emt 0:00:08]} 18. Ne3 {[%emt 0:01:12]} Nf6 {[%emt 0:00:31]} 19. fxg6+ {[%emt 0:00:18]} fxg6 {[%emt 0:00:16]} 20. h4 {[%emt 0:00:10]} d5 {[%emt 0:09:04]} 21. Ng4 {[%emt 0:00:14]} Nxg4 {[%emt 0:00:34]} 22. Qxg4 {[%emt 0:00:05]} Qc8 {[%emt 0:04:02]} 23. Qxc8 {[%emt 0:00:06]} Rbxc8 {[%emt 0:01:43]} 24. f4 {[%emt 0:00:03]} Nf5 {[%emt 0:01:30]} 25. Kh2 {[%emt 0:00:55]} exf4 {[%emt 0:00:53]} 26. Bxf4 {[%emt 0:00:03]} d4 {[%emt 0:00:42]} 27. c4 {[%emt 0:01:05]} Nxh4 {[%emt 0:01:02]} 28. Re6 {[%emt 0:02:12]} Nxg2 {[%emt 0:00:31]} 29. Kxg2 {[%emt 0:00:01]} g5 {[%emt 0:00:24]} 30. Bd6 {[%emt 0:01:41]} Rf6 {[%emt 0:01:32]} 31. Rxf6 {[%emt 0:00:17]} Bxf6 {[%emt 0:00:05]} 32. Re1 {[%emt 0:00:09]} Rc6 {[%emt 0:01:45]} 33. Bb8 {[%emt 0:00:01]} Kg6 {[%emt 0:00:49]} 34. g4 {[%emt 0:00:12]} Kf7 {[%emt 0:00:30]} 35. Kf3 {[%emt 0:00:03]} Bd8 {[%emt 0:01:02]} 36. b3 {[%emt 0:00:23]} Rf6+ {[%emt 0:00:29]} 37. Kg2 {[%emt 0:00:22]} Be7 {[%emt 0:00:27]} 38. Bc7 {[%emt 0:00:10]} Rc6 {[%emt 0:00:27]} 39. Rf1+ {[%emt 0:00:05]} Ke6 {[%emt 0:00:18]} 40. Re1+ {[%emt 0:00:02]} Kd7 {[%emt 0:00:06]} 41. Bg3 {[%emt 0:00:28]} Rf6 {[%emt 0:00:14]} 42. Rh1 {[%emt 0:00:06]} Bd6 {[%emt 0:00:08]} 43. Bxd6 {[%emt 0:00:19]} Kxd6 {[%emt 0:00:03]} 44. Kg3 {[%emt 0:00:05]} Ke7 {[%emt 0:00:19]} 45. Re1+ {[%emt 0:00:01]} Kd7 {[%emt 0:00:07]} 46. Rh1 {[%emt 0:00:02]} 1/2-1/2

[Event "Gibraltar Challengers A 2019"]
[Site "Caleta"]
[Date "2019.01.22"]
[Round "2"]
[White "Pavlov, Egor"]
[Black "Skutta, Bernd"]
[Result "1-0"]
[ECO "A27"]
[WhiteElo "2187"]
[BlackElo "1988"]
[Annotator "NA"]
[PlyCount "73"]
[EventDate "2019.01.18"]
[EventType "swiss"]
[EventCountry "GGB"]
[SourceTitle "playchess.com"]
[Source "ChessBase"]
[SourceQuality "1"]
[TimeControl "6600+10"]

1. c4 {[%emt 0:00:03]} e5 {[%emt 0:00:20]} 2. Nc3 {[%emt 0:00:06]} Nc6 {[%emt 0:00:14]} 3. Nf3 {[%emt 0:00:13]} Bc5 {[%emt 0:00:39]} 4. g3 {[%emt 0:00:47] A27: English Opening: Three Knights Variation} (4. e3 d6 5. d4 exd4 6. exd4 Bb4 7. Bd2 Bxc3 8. Bxc3 d5 9. cxd5 Qxd5 10. Ne5 Nge7 11. f3 Be6 12. Bd3 Nxe5 13. dxe5 {0-1 (52) Khismatullin,D (2632)-Fedorchuk,S (2648) Riadh 2017}) 4... d6 {[%emt 0:00:40]} 5. Bg2 {[%emt 0:00:36]} Be6 {[%emt 0:00:48]} 6. d3 {[%emt 0:03:00]} a6 {[%emt 0:01:44]} 7. O-O {[%emt 0:00:48]} Qc8 {[%emt 0:01:20]} 8. Ng5 $146 {[%emt 0:06:11]} ({Predecessor:} 8. b3 Bh3 9. Bb2 Nd4 10. e3 Bxg2 11. Kxg2 Nxf3 12. Qxf3 {0-1 (51) De Oliveira,A-Rojas,M Balneario Camboriu 2005}) 8... Bf5 {[%emt 0:02:05]} 9. Nd5 {[%emt 0:07:07]} Nge7 {[%emt 0:03:11]} 10. e3 {[%emt 0:14:25]} h5 {[%emt 0:12:29]} 11. b4 {[%emt 0:03:44]} Bxb4 {[%emt 0:11:01]} 12. Nxe7 {[%emt 0:01:24]} Kxe7 {[%emt 0:01:59]} 13. f4 {[%emt 0:05:29]} f6 {[%emt 0:05:07]} 14. Nf3 {[%emt 0:04:51]} Bh3 {[%emt 0:07:54]} 15. d4 {[%emt 0:02:09]} Bxg2 {[%emt 0:00:47]} 16. Kxg2 {[%emt 0:00:06]} Qf5 {[%emt 0:10:25]} 17. Qb3 {[%emt 0:11:20]} h4 {[%emt 0:09:45]} 18. Nxh4 {[%emt 0:13:21]} Rxh4 {[%emt 0:01:11]} 19. gxh4 {[%emt 0:00:05]} Rh8 {[%emt 0:01:49]} 20. h3 {[%emt 0:07:21]} Rxh4 {[%emt 0:01:40]} 21. Rf3 {[%emt 0:00:52]} e4 {[%emt 0:09:51]} 22. Rg3 {[%emt 0:00:37]} Be1 {[%emt 0:00:18]} 23. Rxg7+ {[%emt 0:01:21]} Kf8 {[%emt 0:00:12]} 24. Rg4 {[%emt 0:01:04]} Rxg4+ {[%emt 0:00:17]} 25. hxg4 {[%emt 0:00:04]} Qxg4+ {[%emt 0:00:05]} 26. Kf1 {[%emt 0:00:26]} Bg3 {[%emt 0:04:06]} 27. Qc2 {[%emt 0:01:27]} Qf3+ {[%emt 0:04:06]} 28. Kg1 {[%emt 0:00:09]} Nb4 {[%emt 0:00:28]} 29. Qg2 $17 {[%emt 0:04:30]} Qd1+ {[%emt 0:01:26]} 30. Qf1 {[%emt 0:00:05]} Qg4 {[%emt 0:00:31]} 31. Qg2 {[%emt 0:02:08]} Nd3 {[%emt 0:03:16]} 32. Bd2 {[%emt 0:02:15]} Bf2+ {[%emt 0:02:43]} 33. Kf1 {[%emt 0:02:12]} Qh5 {[%emt 0:02:30]} 34. Qxe4 {[%emt 0:01:03]} Bg3 {[%emt 0:04:53]} 35. Qxb7 {[%emt 0:05:04]} Qh2 {[%emt 0:03:12]} 36. Qg2 {[%emt 0:00:26]} Qh4 {[%emt 0:00:31]} 37. Rb1 {[%emt 0:00:47]} 1-0

[Event "Gibraltar Challengers A 2019"]
[Site "Caleta"]
[Date "2019.01.22"]
[Round "2"]
[White "Lim, Zhuo Ren"]
[Black "Castrillon Gomez, Melissa"]
[Result "1-0"]
[ECO "E68"]
[WhiteElo "2178"]
[BlackElo "2244"]
[Annotator "NA"]
[PlyCount "135"]
[EventDate "2019.01.18"]
[EventType "swiss"]
[EventCountry "GGB"]
[SourceTitle "playchess.com"]
[Source "ChessBase"]
[SourceQuality "1"]
[TimeControl "6600+10"]

1. Nf3 {[%emt 0:00:10]} Nf6 {[%emt 0:00:13]} 2. c4 {[%emt 0:00:12]} g6 {[%emt 0:00:09]} 3. g3 {[%emt 0:00:24]} Bg7 {[%emt 0:00:03]} 4. Bg2 {[%emt 0:00:07]} O-O {[%emt 0:00:10]} 5. O-O {[%emt 0:01:07]} d6 {[%emt 0:00:09]} 6. d4 {[%emt 0:00:11]} Nbd7 {[%emt 0:00:45]} 7. Nc3 {[%emt 0:00:15]} e5 {[%emt 0:00:29]} 8. e4 {[%emt 0:00:18]} a6 {[%emt 0:00:15]} 9. h3 {[%emt 0:00:40]} b5 {[%emt 0:00:12] LiveBook: 192 Games} 10. dxe5 {[%emt 0:04:43]} dxe5 {[%emt 0:00:20]} 11. Qe2 {[%emt 0:00:54]} c6 {[%emt 0:01:26] E68: King's Indian: Fianchetto: 6...Nbd7 7 0-0 e5 8 e4} 12. a3 {[%emt 0:03:43]} Qc7 {[%emt 0:04:05]} (12... Qe7 13. Rd1 Bb7 14. Be3 Rfd8 15. Qc2 Ne8 16. Nd2 Nc7 17. Nb3 Ne6 18. Na5 Ndf8 19. Ne2 {1-0 (63) Bulski,K (2523)-Moranda,W (2568) Warsaw 2012}) 13. Be3 {[%emt 0:01:21]} Re8 {[%emt 0:05:22]} 14. c5 $146 {[%emt 0:11:49]} ({Predecessor:} 14. Rac1 $14 Qb7 15. Nd2 Nb6 16. c5 Nbd7 17. b4 a5 {½-½ (44) Bolbochan,J-Johannsson,I Moscow (Russia) 1956}) 14... a5 {[%emt 0:02:36]} 15. Qc2 {[%emt 0:01:13]} Nf8 {[%emt 0:08:28]} 16. Rfd1 {[%emt 0:03:53]} Ne6 {[%emt 0:03:50]} 17. Ne2 {[%emt 0:09:09]} a4 {[%emt 0:12:28]} 18. Ne1 {[%emt 0:11:40]} Nd7 {[%emt 0:01:18]} 19. Nd3 {[%emt 0:03:53]} Bb7 {[%emt 0:04:59]} 20. h4 {[%emt 0:04:37]} Rad8 {[%emt 0:01:41]} 21. Bh3 {[%emt 0:00:46]} Nd4 {[%emt 0:07:59]} 22. Nxd4 {[%emt 0:03:29]} exd4 {[%emt 0:00:07]} 23. Bg5 {[%emt 0:00:13]} f6 {[%emt 0:04:19]} 24. Bf4 {[%emt 0:01:55]} Qa5 {[%emt 0:00:38]} 25. b4 {[%emt 0:07:15]} axb3 {[%emt 0:03:19]} 26. Qxb3+ {[%emt 0:00:03]} Kh8 {[%emt 0:00:07]} 27. a4 {[%emt 0:00:55]} Ne5 {[%emt 0:10:50]} 28. Bxe5 {[%emt 0:04:02]} fxe5 {[%emt 0:00:13]} 29. Qf7 {[%emt 0:00:22]} Ba6 {[%emt 0:05:26]} 30. axb5 {[%emt 0:08:14]} Qxb5 {[%emt 0:00:01]} 31. Bf1 {[%emt 0:00:40]} Qb7 {[%emt 0:03:38]} 32. Qxb7 {[%emt 0:01:01]} Bxb7 {[%emt 0:00:03] [#]} 33. Rdb1 $1 {[%emt 0:00:23]} Bc8 {[%emt 0:03:29]} 34. Ra7 {[%emt 0:00:42]} Rd7 {[%emt 0:03:06]} 35. Ra8 {[%emt 0:00:15]} Rde7 {[%emt 0:00:24]} 36. Rbb8 {[%emt 0:04:03]} Bd7 {[%emt 0:00:23]} 37. Rd8 {[%emt 0:01:19]} Bf6 {[%emt 0:01:09]} 38. Bh3 {[%emt 0:02:10]} Rxd8 {[%emt 0:00:47]} 39. Rxd8+ {[%emt 0:00:02]} Be8 {[%emt 0:00:07]} 40. Rc8 {[%emt 0:01:36]} Kg7 {[%emt 0:01:07]} 41. Kf1 {[%emt 0:00:31]} Kf7 {[%emt 0:02:33]} 42. Ke2 {[%emt 0:00:54]} Rb7 {[%emt 0:01:24]} 43. Kd2 {[%emt 0:02:06]} Ke7 {[%emt 0:00:54]} 44. Kc2 {[%emt 0:00:23]} h6 {[%emt 0:02:28]} 45. Bg4 {[%emt 0:00:51]} g5 {[%emt 0:00:38]} 46. hxg5 {[%emt 0:00:20]} hxg5 {[%emt 0:00:09]} 47. Bf5 {[%emt 0:00:34]} Bd7 {[%emt 0:03:17]} 48. Bxd7 {[%emt 0:00:03]} Kxd7 {[%emt 0:00:04]} 49. Ra8 {[%emt 0:00:31]} Ke6 {[%emt 0:00:13]} 50. Ra6 {[%emt 0:00:18]} Kd7 {[%emt 0:00:22]} 51. Ra1 {[%emt 0:00:13]} Ke6 {[%emt 0:00:31]} 52. Ra6 {[%emt 0:00:41]} Kd7 {[%emt 0:00:04]} 53. Ra4 {[%emt 0:00:09]} Kc7 {[%emt 0:04:38]} 54. Ra8 {[%emt 0:00:28]} Kd7 {[%emt 0:00:14]} 55. Ra4 {[%emt 0:00:18]} Kc7 {[%emt 0:00:03]} 56. Ra1 {[%emt 0:00:06]} Kd7 $11 {[%emt 0:00:22]} 57. Rh1 {[%emt 0:01:05]} Ke6 {[%emt 0:00:25]} 58. Rh6 {[%emt 0:00:03]} Kf7 {[%emt 0:03:27]} 59. Rh7+ {[%emt 0:00:13]} Bg7 {[%emt 0:00:08]} 60. Rh5 {[%emt 0:00:38]} Kf6 {[%emt 0:00:50]} 61. Rh1 {[%emt 0:00:35]} Bf8 {[%emt 0:00:15]} 62. Rh8 {[%emt 0:00:26]} Rf7 {[%emt 0:00:25]} 63. Rg8 {[%emt 0:00:27]} Ke6 {[%emt 0:00:42]} 64. Rxg5 {[%emt 0:00:08]} Bg7 {[%emt 0:00:00]} 65. Rg6+ {[%emt 0:00:39]} Kd7 {[%emt 0:00:09]} 66. f4 {[%emt 0:00:23]} exf4 {[%emt 0:00:05]} 67. gxf4 {[%emt 0:00:02]} Kc7 {[%emt 0:00:17]} 68. Kb3 {[%emt 0:00:17]} 1-0

[Event "Gibraltar Challengers A 2019"]
[Site "Caleta"]
[Date "2019.01.22"]
[Round "2"]
[White "Tworzydlo, Piotr"]
[Black "Tovarek, Antonin"]
[Result "1-0"]
[ECO "A25"]
[WhiteElo "2165"]
[BlackElo "1995"]
[Annotator "NA"]
[PlyCount "131"]
[EventDate "2019.01.18"]
[EventType "swiss"]
[EventCountry "GGB"]
[SourceTitle "playchess.com"]
[Source "ChessBase"]
[SourceQuality "1"]
[TimeControl "6600+10"]

1. c4 {[%emt 0:00:00]} e5 {[%emt 0:00:53]} 2. Nc3 {[%emt 0:00:01]} Nc6 {[%emt 0:00:04]} 3. g3 {[%emt 0:00:15]} g6 {[%emt 0:00:05]} 4. Bg2 {[%emt 0:00:06]} Bg7 {[%emt 0:00:04]} 5. e3 {[%emt 0:00:36]} Nge7 {[%emt 0:00:56]} 6. Nge2 {[%emt 0:00:42]} O-O {[%emt 0:00:08]} 7. O-O {[%emt 0:01:01]} d6 {[%emt 0:00:37]} 8. Nd5 {[%emt 0:10:21]} Nxd5 {[%emt 0:01:30]} 9. cxd5 {[%emt 0:00:09]} Ne7 {[%emt 0:03:29]} 10. d3 {[%emt 0:08:20]} c6 {[%emt 0:04:05]} 11. dxc6 {[%emt 0:02:18]} bxc6 {[%emt 0:00:44]} 12. Bd2 {[%emt 0:11:57]} Qb6 {[%emt 0:02:04]} 13. Qc2 {[%emt 0:01:32]} Rb8 {[%emt 0:04:13]} 14. Rab1 {[%emt 0:01:07]} Be6 {[%emt 0:05:38]} 15. Nc3 {[%emt 0:03:20]} f5 {[%emt 0:02:47]} 16. b4 {[%emt 0:02:30]} Rfc8 {[%emt 0:03:07]} 17. Rfc1 {[%emt 0:02:57]} Qd8 {[%emt 0:20:38]} 18. a4 {[%emt 0:11:08]} a6 {[%emt 0:03:41]} 19. Qd1 {[%emt 0:05:44]} Qe8 {[%emt 0:08:42]} 20. a5 {[%emt 0:04:26]} Qf7 {[%emt 0:07:41]} 21. Na4 {[%emt 0:06:52]} Nd5 {[%emt 0:10:48]} 22. e4 {[%emt 0:02:02]} Ne7 {[%emt 0:02:22]} 23. Nb6 {[%emt 0:02:39]} Rf8 {[%emt 0:00:24]} 24. Qe1 {[%emt 0:04:24]} f4 {[%emt 0:01:24]} 25. Bc3 {[%emt 0:02:20]} f3 {[%emt 0:03:40]} 26. Bf1 {[%emt 0:00:10]} Nc8 {[%emt 0:00:57]} 27. Nc4 {[%emt 0:02:38]} g5 {[%emt 0:01:25]} 28. Nd2 {[%emt 0:12:00]} Qh5 {[%emt 0:00:38]} 29. Qe3 {[%emt 0:02:53]} Rf6 {[%emt 0:01:29]} 30. d4 {[%emt 0:02:41]} exd4 {[%emt 0:07:13]} 31. Qxd4 {[%emt 0:05:55]} Rb7 {[%emt 0:00:45]} 32. e5 {[%emt 0:00:45]} Rh6 {[%emt 0:00:38]} 33. Nxf3 {[%emt 0:00:18]} Bg4 {[%emt 0:03:28]} 34. h4 {[%emt 0:00:49]} Bxf3 {[%emt 0:00:43]} 35. Bd2 {[%emt 0:00:19]} Bxe5 {[%emt 0:01:13]} 36. Qd3 {[%emt 0:00:02]} gxh4 {[%emt 0:02:55]} 37. Bxh6 {[%emt 0:00:12]} hxg3 {[%emt 0:00:04]} 38. fxg3 {[%emt 0:00:20]} Bxg3 {[%emt 0:00:47]} 39. Bh3 {[%emt 0:00:30]} Qxh3 {[%emt 0:00:30]} 40. Qxf3 {[%emt 0:00:02]} Bh2+ {[%emt 0:00:33]} 41. Kf2 {[%emt 0:00:08]} Qxh6 {[%emt 0:01:47]} 42. Rg1+ {[%emt 0:00:01]} Bxg1+ {[%emt 0:00:38]} 43. Rxg1+ {[%emt 0:00:02]} Rg7 {[%emt 0:00:17]} 44. Rxg7+ {[%emt 0:00:12]} Qxg7 {[%emt 0:00:07]} 45. Qxc6 {[%emt 0:00:06]} Qd4+ {[%emt 0:00:43]} 46. Ke2 {[%emt 0:00:28]} Qe5+ {[%emt 0:00:15]} 47. Kd1 {[%emt 0:00:03]} Qd4+ {[%emt 0:00:17]} 48. Kc2 {[%emt 0:00:05]} Qf2+ {[%emt 0:00:26]} 49. Kb3 {[%emt 0:00:02]} Qg3+ {[%emt 0:00:05]} 50. Ka4 {[%emt 0:00:05]} Qg4 {[%emt 0:00:25]} 51. Qxa6 {[%emt 0:00:07]} d5 {[%emt 0:00:13]} 52. Qc6 {[%emt 0:00:08]} d4 {[%emt 0:00:08]} 53. a6 {[%emt 0:00:09]} d3 {[%emt 0:00:05]} 54. Ka5 {[%emt 0:00:04]} d2 {[%emt 0:00:05]} 55. Qd5+ {[%emt 0:00:03]} Kg7 {[%emt 0:00:10]} 56. Qxd2 {[%emt 0:00:03]} Qf5+ {[%emt 0:00:18]} 57. b5 {[%emt 0:00:08]} Na7 {[%emt 0:00:07]} 58. Qd4+ {[%emt 0:00:04]} Kg6 {[%emt 0:00:04]} 59. Qxa7 {[%emt 0:00:04]} h5 {[%emt 0:00:11]} 60. Qg1+ {[%emt 0:00:05]} Kh7 {[%emt 0:00:06]} 61. a7 {[%emt 0:00:09]} Qf3 {[%emt 0:00:06]} 62. Qd4 {[%emt 0:00:10]} Qb7 {[%emt 0:00:09]} 63. b6 {[%emt 0:00:13]} Kg6 {[%emt 0:00:06]} 64. Kb5 {[%emt 0:00:22]} Kg5 {[%emt 0:00:17]} 65. Qc5+ {[%emt 0:00:02]} Kg4 {[%emt 0:00:03]} 66. Qc6 {[%emt 0:00:04]} 1-0

[Event "Gibraltar Challengers A 2019"]
[Site "Caleta"]
[Date "2019.01.22"]
[Round "2"]
[White "Bengherabi, Khalil"]
[Black "Meszaros, Andras"]
[Result "0-1"]
[ECO "B27"]
[WhiteElo "2150"]
[BlackElo "2226"]
[Annotator "NA"]
[PlyCount "67"]
[EventDate "2019.01.18"]
[EventType "swiss"]
[EventCountry "GGB"]
[SourceTitle "playchess.com"]
[Source "ChessBase"]
[SourceQuality "1"]
[TimeControl "6600+10"]

1. e4 {[%emt 0:00:00]} c5 {[%emt 0:00:04]} 2. Nf3 {[%emt 0:00:00]} g6 {[%emt 0:00:09]} 3. d4 {[%emt 0:00:35]} cxd4 {[%emt 0:00:08]} 4. Qxd4 {[%emt 0:02:30]} Nf6 {[%emt 0:00:13]} 5. Nc3 {[%emt 0:00:05]} Nc6 {[%emt 0:00:19]} 6. Qa4 {[%emt 0:01:16] B27: Sicilian: 2 Nf3, unusual Black 2nd moves} Bg7 {[%emt 0:01:21]} (6... d6 7. e5 dxe5 8. Nxe5 Bg7 9. Nxc6 bxc6 10. Ba6 O-O 11. Bxc8 Qxc8 12. O-O Nd5 13. Ne4 Nb6 14. Qb3 Qf5 15. Re1 Rfd8 16. c3 Rd7 17. Be3 Qxe4 18. Bxb6 Qd5 19. Be3 {½-½ (19) Jovanovic,Z (2540)-Sebenik,M (2570) Biograd 2018}) 7. e5 {[%emt 0:03:58] LiveBook: 19 Games} Ng8 {[%emt 0:00:19]} 8. Bf4 {[%emt 0:00:12]} Nh6 {[%emt 0:02:16]} 9. h3 {[%emt 0:08:52]} O-O {[%emt 0:00:12]} 10. Bb5 $146 {[%emt 0:15:00]} ({Predecessor:} 10. O-O-O a6 11. g4 b5 12. Bxb5 Qb6 13. Bxc6 dxc6 14. Qd4 c5 15. Qe3 Rb8 16. b3 Bxg4 17. Nd5 Qa5 18. Bxh6 Bxh6 19. Qxh6 Bxf3 20. Nf6+ {1-0 (20) Ceschia,I (2298)-Xia,J (2262) Venice 2012}) 10... a6 {[%emt 0:01:05]} 11. O-O {[%emt 0:09:49]} Rb8 {[%emt 0:12:02]} 12. Bd3 {[%emt 0:01:17]} b5 {[%emt 0:03:41]} 13. Qe4 {[%emt 0:00:57]} Kh8 {[%emt 0:37:35]} 14. Rfe1 {[%emt 0:27:39]} (14. Qe3 $16 Nf5 15. Bxf5 gxf5 16. Nd5) 14... Ng8 {[%emt 0:08:03]} 15. Qe2 {[%emt 0:24:13]} Bb7 {[%emt 0:07:46]} 16. a4 {[%emt 0:00:55]} Nb4 {[%emt 0:01:26]} 17. Be4 {[%emt 0:07:29]} bxa4 {[%emt 0:02:00]} 18. e6 {[%emt 0:03:30]} Bxe4 {[%emt 0:11:30]} 19. Nxe4 {[%emt 0:00:04]} Rb6 {[%emt 0:00:09]} 20. exf7 {[%emt 0:00:17]} Rxf7 {[%emt 0:00:16]} 21. Be5 {[%emt 0:01:33]} Nc6 {[%emt 0:05:28]} 22. Bxg7+ {[%emt 0:00:04]} Rxg7 {[%emt 0:00:15]} 23. Rxa4 {[%emt 0:00:05]} Rxb2 {[%emt 0:00:22]} 24. Rxa6 {[%emt 0:00:11]} Qc7 {[%emt 0:00:26]} 25. Qc4 {[%emt 0:00:47]} Rb4 {[%emt 0:03:15]} 26. Qc3 {[%emt 0:00:41]} Qf4 {[%emt 0:02:28]} 27. Rxc6 {[%emt 0:01:44]} Rxe4 {[%emt 0:00:10]} 28. Rxe4 {[%emt 0:00:05]} Qxe4 {[%emt 0:00:04]} 29. Rc8 {[%emt 0:00:06]} h6 {[%emt 0:00:39]} 30. Ne5 {[%emt 0:00:47]} (30. Qd2 $16 Kh7 31. Qxd7) 30... d6 {[%emt 0:00:34]} 31. Nd7 {[%emt 0:00:08]} Qf5 {[%emt 0:02:31]} 32. Nf8 {[%emt 0:00:00]} e5 $11 {[%emt 0:00:39]} 33. f3 {[%emt 0:00:28]} Rf7 {[%emt 0:00:35]} 34. Rc7 {[%emt 0:00:14]} 0-1